Workbook

Sheet 8200HV
A1: Input Voltage | B1: Input Current | C1: Output Voltage | D1: Output Current | F1: Input Power | G1: Output Power | H1: % Efficiency
A2: 3 | B2: 0.079 | C2: 171.4 | D2: 0.001 | F2: =A2*B2 -> 0.237 | G2: =C2*D2 -> 0.1714 | H2: =G2/F2 -> 0.7232067511
A3: 3 | B3: 0.145 | C3: 170.6 | D3: 0.002 | F3: =A3*B3 -> 0.435 | G3: =C3*D3 -> 0.3412 | H3: =G3/F3 -> 0.7843678161
A4: 3 | B4: 0.202 | C4: 170.7 | D4: 0.003 | F4: 0.606 | G4: 0.5121 | H4: 0.845049505
A5: 3 | B5: 0.27 | C5: 170.4 | D5: 0.004 | F5: 0.81 | G5: 0.6816 | H5: 0.8414814815
A6: 3 | B6: 0.337 | C6: 170.3 | D6: 0.005 | F6: 1.011 | G6: 0.8515 | H6: 0.8422354105
A7: 3 | B7: 0.405 | C7: 170.2 | D7: 0.006 | F7: 1.215 | G7: 1.0212 | H7: 0.8404938272
A8: 3 | B8: 0.471 | C8: 170 | D8: 0.007 | F8: 1.413 | G8: 1.19 | H8: 0.8421797594
A9: 3 | B9: 0.537 | C9: 169.9 | D9: 0.008 | F9: 1.611 | G9: 1.3592 | H9: 0.8436995655
A10: 3 | B10: 0.605 | C10: 169.9 | D10: 0.009 | F10: 1.815 | G10: 1.5291 | H10: 0.8424793388
A11: 3 | B11: 0.676 | C11: 169.8 | D11: 0.01 | F11: 2.028 | G11: 1.698 | H11: 0.8372781065
A12: 3 | B12: 0.747 | C12: 169.6 | D12: 0.011 | F12: 2.241 | G12: 1.8656 | H12: 0.8324854975
A13: 3 | B13: 0.829 | C13: 169.5 | D13: 0.012 | F13: 2.487 | G13: 2.034 | H13: 0.8178528347
A14: 3 | B14: 0.897 | C14: 169.5 | D14: 0.013 | F14: 2.691 | G14: 2.2035 | H14: 0.8188405797
A15: 3 | B15: 0.968 | C15: 169.4 | D15: 0.014 | F15: 2.904 | G15: 2.3716 | H15: 0.8166666667
A17: 5 | B17: 0.045 | C17: 171.6 | D17: 0.001 | F17: 0.225 | G17: 0.1716 | H17: 0.7626666667
A18: 5 | B18: 0.088 | C18: 171.5 | D18: 0.002 | F18: 0.44 | G18: 0.343 | H18: 0.7795454545
A19: 5 | B19: 0.122 | C19: 171.1 | D19: 0.003 | F19: 0.61 | G19: 0.5133 | H19: 0.8414754098
A20: 5 | B20: 0.16 | C20: 170.9 | D20: 0.004 | F20: 0.8 | G20: 0.6836 | H20: 0.8545
A21: 5 | B21: 0.201 | C21: 170.8 | D21: 0.005 | F21: 1.005 | G21: 0.854 | H21: 0.8497512438
A22: 5 | B22: 0.24 | C22: 170.7 | D22: 0.006 | F22: 1.2 | G22: 1.0242 | H22: 0.8535
A23: 5 | B23: 0.276 | C23: 170.7 | D23: 0.007 | F23: 1.38 | G23: 1.1949 | H23: 0.8658695652
A24: 5 | B24: 0.31 | C24: 170.7 | D24: 0.008 | F24: 1.55 | G24: 1.3656 | H24: 0.8810322581
A25: 5 | B25: 0.349 | C25: 170.5 | D25: 0.009 | F25: 1.745 | G25: 1.5345 | H25: 0.8793696275
A26: 5 | B26: 0.39 | C26: 170.4 | D26: 0.01 | F26: =A26*B26 -> 1.95 | G26: =C26*D26 -> 1.704 | H26: =G26/F26 -> 0.8738461538
A27: 5 | B27: 0.432 | C27: 170.4 | D27: 0.011 | F27: 2.16 | G27: 1.8744 | H27: 0.8677777778
A28: 5 | B28: 0.47 | C28: 170.3 | D28: 0.012 | F28: 2.35 | G28: 2.0436 | H28: 0.8696170213
A29: 5 | B29: 0.508 | C29: 170.3 | D29: 0.013 | F29: 2.54 | G29: 2.2139 | H29: 0.8716141732
A30: 5 | B30: 0.546 | C30: 170.3 | D30: 0.014 | F30: 2.73 | G30: 2.3842 | H30: 0.8733333333
A31: 5 | B31: 0.582 | C31: 170.3 | D31: 0.015 | F31: 2.91 | G31: 2.5545 | H31: 0.8778350515
A32: 5 | B32: 0.622 | C32: 170.1 | D32: 0.016 | F32: 3.11 | G32: 2.7216 | H32: 0.8751125402
A33: 5 | B33: 0.664 | C33: 170 | D33: 0.017 | F33: 3.32 | G33: 2.89 | H33: 0.8704819277
A34: 5 | B34: 0.708 | C34: 170 | D34: 0.018 | F34: 3.54 | G34: 3.06 | H34: 0.8644067797
A35: 5 | B35: 0.752 | C35: 170 | D35: 0.019 | F35: 3.76 | G35: 3.23 | H35: 0.8590425532
A36: 5 | B36: 0.794 | C36: 169.9 | D36: 0.02 | F36: 3.97 | G36: 3.398 | H36: 0.8559193955
A37: 5 | B37: 0.835 | C37: 169.8 | D37: 0.021 | F37: =A37*B37 -> 4.175 | G37: =C37*D37 -> 3.5658 | H37: =G37/F37 -> 0.8540838323
A38: 5 | B38: 0.874 | C38: 169.8 | D38: 0.022 | F38: 4.37 | G38: 3.7356 | H38: 0.8548283753
A39: 5 | B39: 0.916 | C39: 169.8 | D39: 0.023 | F39: 4.58 | G39: 3.9054 | H39: 0.8527074236
A40: 5 | B40: 0.954 | C40: 169.7 | D40: 0.024 | F40: 4.77 | G40: 4.0728 | H40: 0.853836478
A41: 5 | B41: 0.998 | C41: 169.4 | D41: 0.025 | F41: 4.99 | G41: 4.235 | H41: 0.8486973948
A43: 9 | B43: 0.025 | C43: 171.5 | D43: 0.001 | F43: =A43*B43 -> 0.225 | G43: =C43*D43 -> 0.1715 | H43: =G43/F43 -> 0.7622222222
A44: 9 | B44: 0.048 | C44: 171.5 | D44: 0.002 | F44: =A44*B44 -> 0.432 | G44: =C44*D44 -> 0.343 | H44: =G44/F44 -> 0.7939814815
A45: 9 | B45: 0.07 | C45: 171.2 | D45: 0.003 | F45: 0.63 | G45: 0.5136 | H45: 0.8152380952
A46: 9 | B46: 0.093 | C46: 171.1 | D46: 0.004 | F46: =A46*B46 -> 0.837 | G46: =C46*D46 -> 0.6844 | H46: =G46/F46 -> 0.8176821983
A47: 9 | B47: 0.115 | C47: 171.1 | D47: 0.005 | F47: 1.035 | G47: 0.8555 | H47: 0.8265700483
A48: 9 | B48: 0.139 | C48: 171 | D48: 0.006 | F48: 1.251 | G48: 1.026 | H48: 0.8201438849
A49: 9 | B49: 0.161 | C49: 171 | D49: 0.007 | F49: 1.449 | G49: 1.197 | H49: 0.8260869565
A50: 9 | B50: 0.18 | C50: 171 | D50: 0.008 | F50: 1.62 | G50: 1.368 | H50: 0.8444444444
A51: 9 | B51: 0.197 | C51: 171 | D51: 0.009 | F51: 1.773 | G51: 1.539 | H51: 0.8680203046
A52: 9 | B52: 0.217 | C52: 170.9 | D52: 0.01 | F52: 1.953 | G52: 1.709 | H52: 0.8750640041
A53: 9 | B53: 0.234 | C53: 171 | D53: 0.011 | F53: 2.106 | G53: 1.881 | H53: 0.8931623932
A54: 9 | B54: 0.255 | C54: 170.9 | D54: 0.012 | F54: 2.295 | G54: 2.0508 | H54: 0.8935947712
A55: 9 | B55: 0.278 | C55: 170.8 | D55: 0.013 | F55: =A55*B55 -> 2.502 | G55: =C55*D55 -> 2.2204 | H55: =G55/F55 -> 0.88745004
A56: 9 | B56: 0.301 | C56: 170.7 | D56: 0.014 | F56: 2.709 | G56: 2.3898 | H56: 0.8821705426
A57: 9 | B57: 0.324 | C57: 170.6 | D57: 0.015 | F57: 2.916 | G57: 2.559 | H57: 0.8775720165
A58: 9 | B58: 0.345 | C58: 170.6 | D58: 0.016 | F58: 3.105 | G58: 2.7296 | H58: 0.8790982287
A59: 9 | B59: 0.367 | C59: 170.6 | D59: 0.017 | F59: 3.303 | G59: 2.9002 | H59: 0.8780502573
A60: 9 | B60: 0.387 | C60: 170.5 | D60: 0.018 | F60: 3.483 | G60: 3.069 | H60: 0.8811369509
A61: 9 | B61: 0.407 | C61: 170.5 | D61: 0.019 | F61: 3.663 | G61: 3.2395 | H61: 0.8843843844
A62: 9 | B62: 0.425 | C62: 170.5 | D62: 0.02 | F62: 3.825 | G62: 3.41 | H62: 0.891503268
A63: 9 | B63: 0.446 | C63: 170.5 | D63: 0.021 | F63: 4.014 | G63: 3.5805 | H63: 0.8920029895
A64: 9 | B64: 0.467 | C64: 170.5 | D64: 0.022 | F64: 4.203 | G64: 3.751 | H64: 0.8924577683
A65: 9 | B65: 0.485 | C65: 170.5 | D65: 0.023 | F65: 4.365 | G65: 3.9215 | H65: 0.8983963345
A66: 9 | B66: 0.505 | C66: 170.5 | D66: 0.024 | F66: 4.545 | G66: 4.092 | H66: 0.900330033
A67: 9 | B67: 0.528 | C67: 170.3 | D67: 0.025 | F67: 4.752 | G67: 4.2575 | H67: 0.8959385522
A69: 12 | B69: 0.019 | C69: 171.6 | D69: 0.001 | F69: =A69*B69 -> 0.228 | G69: =C69*D69 -> 0.1716 | H69: =G69/F69 -> 0.7526315789
A70: 12 | B70: 0.036 | C70: 171.6 | D70: 0.002 | F70: 0.432 | G70: 0.3432 | H70: 0.7944444444
A71: 12 | B71: 0.053 | C71: 171.5 | D71: 0.003 | F71: 0.636 | G71: 0.5145 | H71: 0.8089622642
A72: 12 | B72: 0.07 | C72: 171.4 | D72: 0.004 | F72: 0.84 | G72: 0.6856 | H72: 0.8161904762
A73: 12 | B73: 0.086 | C73: 171.4 | D73: 0.005 | F73: 1.032 | G73: 0.857 | H73: 0.8304263566
A74: 12 | B74: 0.101 | C74: 171.3 | D74: 0.006 | F74: 1.212 | G74: 1.0278 | H74: 0.848019802
A75: 12 | B75: 0.119 | C75: 171.2 | D75: 0.007 | F75: 1.428 | G75: 1.1984 | H75: 0.8392156863
A76: 12 | B76: 0.136 | C76: 171.1 | D76: 0.008 | F76: 1.632 | G76: 1.3688 | H76: 0.8387254902
A77: 12 | B77: 0.152 | C77: 171.1 | D77: 0.009 | F77: 1.824 | G77: 1.5399 | H77: 0.8442434211
A78: 12 | B78: 0.167 | C78: 171.1 | D78: 0.01 | F78: 2.004 | G78: 1.711 | H78: 0.8537924152
A79: 12 | B79: 0.183 | C79: 171 | D79: 0.011 | F79: 2.196 | G79: 1.881 | H79: 0.856557377
A80: 12 | B80: 0.198 | C80: 171 | D80: 0.012 | F80: 2.376 | G80: 2.052 | H80: 0.8636363636
A81: 12 | B81: 0.213 | C81: 171 | D81: 0.013 | F81: 2.556 | G81: 2.223 | H81: 0.8697183099
A82: 12 | B82: 0.227 | C82: 171 | D82: 0.014 | F82: 2.724 | G82: 2.394 | H82: 0.8788546256
A83: 12 | B83: 0.244 | C83: 170.9 | D83: 0.015 | F83: 2.928 | G83: 2.5635 | H83: 0.8755122951
A84: 12 | B84: 0.259 | C84: 170.8 | D84: 0.016 | F84: 3.108 | G84: 2.7328 | H84: 0.8792792793
A85: 12 | B85: 0.273 | C85: 171 | D85: 0.017 | F85: 3.276 | G85: 2.907 | H85: 0.8873626374
A86: 12 | B86: 0.285 | C86: 171 | D86: 0.018 | F86: 3.42 | G86: 3.078 | H86: 0.9
A87: 12 | B87: 0.302 | C87: 170.9 | D87: 0.019 | F87: 3.624 | G87: 3.2471 | H87: 0.8959988962
A88: 12 | B88: 0.323 | C88: 170.4 | D88: 0.02 | F88: 3.876 | G88: 3.408 | H88: 0.8792569659
A89: 12 | B89: 0.337 | C89: 170.3 | D89: 0.021 | F89: 4.044 | G89: 3.5763 | H89: 0.884347181
A90: 12 | B90: 0.354 | C90: 170.3 | D90: 0.022 | F90: 4.248 | G90: 3.7466 | H90: 0.8819679849
A91: 12 | B91: 0.368 | C91: 170.3 | D91: 0.023 | F91: 4.416 | G91: 3.9169 | H91: 0.8869791667
A92: 12 | B92: 0.385 | C92: 170.4 | D92: 0.024 | F92: 4.62 | G92: 4.0896 | H92: 0.8851948052
A93: 12 | B93: 0.401 | C93: 170.5 | D93: 0.025 | F93: 4.812 | G93: 4.2625 | H93: 0.8858063175

Sheet Rev. A
A1: Input Voltage | B1: Input Current | C1: Output Voltage | D1: Output Current | F1: Input Power | G1: Output Power | H1: % Efficiency
A2: 3 | B2: 0.114 | C2: 197 | D2: 0.001 | F2: =A2*B2 -> 0.342 | G2: =C2*D2 -> 0.197 | H2: =G2/F2 -> 0.5760233918
A3: 3 | B3: 0.201 | C3: 197.1 | D3: 0.002 | F3: =A3*B3 -> 0.603 | G3: =C3*D3 -> 0.3942 | H3: =G3/F3 -> 0.6537313433
A4: 3 | B4: 0.292 | C4: 197.2 | D4: 0.003 | F4: =A4*B4 -> 0.876 | G4: =C4*D4 -> 0.5916 | H4: =G4/F4 -> 0.6753424658
A5: 3 | B5: 0.387 | C5: 197.2 | D5: 0.004 | F5: 1.161 | G5: 0.7888 | H5: 0.679414298
A6: 3 | B6: 0.485 | C6: 197.3 | D6: 0.005 | F6: 1.455 | G6: 0.9865 | H6: 0.6780068729
A7: 3 | B7: 0.586 | C7: 197.4 | D7: 0.006 | F7: 1.758 | G7: 1.1844 | H7: 0.6737201365
A8: 3 | B8: 0.69 | C8: 197.4 | D8: 0.007 | F8: 2.07 | G8: 1.3818 | H8: 0.6675362319
A9: 3 | B9: 0.794 | C9: 197.5 | D9: 0.008 | F9: 2.382 | G9: 1.58 | H9: 0.6633081444
A10: 3 | B10: 0.896 | C10: 197.6 | D10: 0.009 | F10: 2.688 | G10: 1.7784 | H10: 0.6616071429
A11: 3 | B11: 1 | C11: 197.6 | D11: 0.01 | F11: 3 | G11: 1.976 | H11: 0.6586666667
A12: 3 | B12: 1.108 | C12: 197.6 | D12: 0.011 | F12: 3.324 | G12: 2.1736 | H12: 0.6539109507
A13: 3 | B13: 1.218 | C13: 197.6 | D13: 0.012 | F13: 3.654 | G13: 2.3712 | H13: 0.6489326765
A14: 3 | B14: 1.333 | C14: 197.6 | D14: 0.013 | F14: 3.999 | G14: 2.5688 | H14: 0.6423605901
A15: 3 | B15: 1.448 | C15: 197.6 | D15: 0.014 | F15: 4.344 | G15: 2.7664 | H15: 0.6368324125
A16: 3 | B16: 1.566 | C16: 197.6 | D16: 0.015 | F16: 4.698 | G16: 2.964 | H16: 0.6309067688
A17: 3 | D17: 0.016 | F17: 0 | G17: 0
A18: 3 | D18: 0.017 | F18: =A18*B18 -> 0 | G18: =C18*D18 -> 0 | H18: =G18/F18 ->  | J18: Started smoking
A20: 5 | B20: 0.06 | C20: 197.2 | D20: 0.001 | F20: =A20*B20 -> 0.3 | G20: =C20*D20 -> 0.1972 | H20: =G20/F20 -> 0.6573333333
A21: 5 | B21: 0.102 | C21: 197.1 | D21: 0.002 | F21: 0.51 | G21: 0.3942 | H21: 0.7729411765
A22: 5 | B22: 0.145 | C22: 197.1 | D22: 0.003 | F22: =A22*B22 -> 0.725 | G22: =C22*D22 -> 0.5913 | H22: =G22/F22 -> 0.8155862069
A23: 5 | B23: 0.187 | C23: 197.1 | D23: 0.004 | F23: 0.935 | G23: 0.7884 | H23: 0.8432085561
A24: 5 | B24: 0.229 | C24: 197.1 | D24: 0.005 | F24: 1.145 | G24: 0.9855 | H24: 0.86069869
A25: 5 | B25: 0.272 | C25: 197 | D25: 0.006 | F25: 1.36 | G25: 1.182 | H25: 0.8691176471
A26: 5 | B26: 0.315 | C26: 197 | D26: 0.007 | F26: 1.575 | G26: 1.379 | H26: 0.8755555556
A27: 5 | B27: 0.358 | C27: 197 | D27: 0.008 | F27: 1.79 | G27: 1.576 | H27: 0.8804469274
A28: 5 | B28: 0.401 | C28: 197 | D28: 0.009 | F28: 2.005 | G28: 1.773 | H28: 0.8842892768
A29: 5 | B29: 0.446 | C29: 197 | D29: 0.01 | F29: 2.23 | G29: 1.97 | H29: 0.8834080717
A30: 5 | B30: 0.49 | C30: 197 | D30: 0.011 | F30: 2.45 | G30: 2.167 | H30: 0.8844897959
A31: 5 | B31: 0.533 | C31: 197 | D31: 0.012 | F31: 2.665 | G31: 2.364 | H31: 0.887054409
A32: 5 | B32: 0.577 | C32: 197 | D32: 0.013 | F32: 2.885 | G32: 2.561 | H32: 0.887694974
A33: 5 | B33: 0.621 | C33: 197.1 | D33: 0.014 | F33: 3.105 | G33: 2.7594 | H33: 0.8886956522
A34: 5 | B34: 0.667 | C34: 197.1 | D34: 0.015 | F34: 3.335 | G34: 2.9565 | H34: 0.8865067466
A35: 5 | B35: 0.714 | C35: 197.1 | D35: 0.016 | F35: 3.57 | G35: 3.1536 | H35: 0.8833613445
A36: 5 | B36: 0.759 | C36: 197.1 | D36: 0.017 | F36: 3.795 | G36: 3.3507 | H36: 0.8829249012
A37: 5 | B37: 0.806 | C37: 197.1 | D37: 0.018 | F37: 4.03 | G37: 3.5478 | H37: 0.8803473945
A38: 5 | B38: 0.846 | C38: 196.7 | D38: 0.019 | F38: 4.23 | G38: 3.7373 | H38: 0.8835224586
A39: 5 | B39: 0.836 | C39: 184.6 | D39: 0.02 | F39: 4.18 | G39: 3.692 | H39: 0.8832535885
A40: 5 | B40: 0.835 | C40: 175.7 | D40: 0.021 | F40: 4.175 | G40: 3.6897 | H40: 0.883760479
A41: 5 | B41: 0.835 | C41: 168.7 | D41: 0.022 | F41: 4.175 | G41: 3.7114 | H41: 0.8889580838
A42: 5 | B42: 0.835 | C42: 161.3 | D42: 0.023 | F42: 4.175 | G42: 3.7099 | H42: 0.8885988024
A43: 5 | B43: 0.835 | C43: 155.3 | D43: 0.024 | F43: 4.175 | G43: 3.7272 | H43: 0.892742515
A44: 5 | B44: 0.835 | C44: 153.7 | D44: 0.025 | F44: 4.175 | G44: 3.8425 | H44: 0.9203592814
A46: 9 | B46: 0.035 | C46: 197.1 | D46: 0.001 | F46: =A46*B46 -> 0.315 | G46: =C46*D46 -> 0.1971 | H46: =G46/F46 -> 0.6257142857
A47: 9 | B47: 0.058 | C47: 197.1 | D47: 0.002 | F47: 0.522 | G47: 0.3942 | H47: 0.7551724138
A48: 9 | B48: 0.082 | C48: 197.1 | D48: 0.003 | F48: 0.738 | G48: 0.5913 | H48: 0.8012195122
A49: 9 | B49: 0.104 | C49: 197.1 | D49: 0.004 | F49: 0.936 | G49: 0.7884 | H49: 0.8423076923
A50: 9 | B50: 0.128 | C50: 197.1 | D50: 0.005 | F50: 1.152 | G50: 0.9855 | H50: 0.85546875
A51: 9 | B51: 0.151 | C51: 197.1 | D51: 0.006 | F51: 1.359 | G51: 1.1826 | H51: 0.8701986755
A52: 9 | B52: 0.174 | C52: 197.2 | D52: 0.007 | F52: 1.566 | G52: 1.3804 | H52: 0.8814814815
A53: 9 | B53: 0.199 | C53: 197.2 | D53: 0.008 | F53: 1.791 | G53: 1.5776 | H53: 0.8808486879
A54: 9 | B54: 0.222 | C54: 197.2 | D54: 0.009 | F54: 1.998 | G54: 1.7748 | H54: 0.8882882883
A55: 9 | B55: 0.245 | C55: 197.2 | D55: 0.01 | F55: 2.205 | G55: 1.972 | H55: 0.8943310658
A56: 9 | B56: 0.268 | C56: 197.2 | D56: 0.011 | F56: 2.412 | G56: 2.1692 | H56: 0.8993366501
A57: 9 | B57: 0.292 | C57: 197.2 | D57: 0.012 | F57: 2.628 | G57: 2.3664 | H57: 0.900456621
A58: 9 | B58: 0.316 | C58: 197.2 | D58: 0.013 | F58: 2.844 | G58: 2.5636 | H58: 0.9014064698
A59: 9 | B59: 0.34 | C59: 197.3 | D59: 0.014 | F59: 3.06 | G59: 2.7622 | H59: 0.9026797386
A60: 9 | B60: 0.363 | C60: 197.3 | D60: 0.015 | F60: 3.267 | G60: 2.9595 | H60: 0.9058769513
A61: 9 | B61: 0.388 | C61: 197.3 | D61: 0.016 | F61: 3.492 | G61: 3.1568 | H61: 0.9040091638
A62: 9 | B62: 0.412 | C62: 197.3 | D62: 0.017 | F62: 3.708 | G62: 3.3541 | H62: 0.9045577131
A63: 9 | B63: 0.436 | C63: 197.3 | D63: 0.018 | F63: 3.924 | G63: 3.5514 | H63: 0.9050458716
A64: 9 | B64: 0.463 | C64: 197.3 | D64: 0.019 | F64: 4.167 | G64: 3.7487 | H64: 0.8996160307
A65: 9 | B65: 0.467 | C65: 189.2 | D65: 0.02 | F65: 4.203 | G65: 3.784 | H65: 0.9003093029
A66: 9 | B66: 0.467 | C66: 180.9 | D66: 0.021 | F66: 4.203 | G66: 3.7989 | H66: 0.9038543897
A67: 9 | B67: 0.468 | C67: 173.1 | D67: 0.022 | F67: 4.212 | G67: 3.8082 | H67: 0.9041310541
A68: 9 | B68: 0.47 | C68: 166.2 | D68: 0.023 | F68: 4.23 | G68: 3.8226 | H68: 0.9036879433
A69: 9 | B69: 0.47 | C69: 160 | D69: 0.024 | F69: 4.23 | G69: 3.84 | H69: 0.9078014184
A70: 9 | B70: 0.471 | C70: 155.7 | D70: 0.025 | F70: 4.239 | G70: 3.8925 | H70: 0.9182590234
A72: 12 | B72: 0.028 | C72: 197.2 | D72: 0.001 | F72: =A72*B72 -> 0.336 | G72: =C72*D72 -> 0.1972 | H72: =G72/F72 -> 0.5869047619
A73: 12 | B73: 0.046 | C73: 197.2 | D73: 0.002 | F73: 0.552 | G73: 0.3944 | H73: 0.7144927536
A74: 12 | B74: 0.063 | C74: 197.2 | D74: 0.003 | F74: 0.756 | G74: 0.5916 | H74: 0.7825396825
A75: 12 | B75: 0.081 | C75: 197.2 | D75: 0.004 | F75: 0.972 | G75: 0.7888 | H75: 0.8115226337
A76: 12 | B76: 0.098 | C76: 197.2 | D76: 0.005 | F76: 1.176 | G76: 0.986 | H76: 0.8384353741
A77: 12 | B77: 0.116 | C77: 197.2 | D77: 0.006 | F77: 1.392 | G77: 1.1832 | H77: 0.85
A78: 12 | B78: 0.133 | C78: 197.2 | D78: 0.007 | F78: 1.596 | G78: 1.3804 | H78: 0.8649122807
A79: 12 | B79: 0.15 | C79: 197.2 | D79: 0.008 | F79: 1.8 | G79: 1.5776 | H79: 0.8764444444
A80: 12 | B80: 0.168 | C80: 197.2 | D80: 0.009 | F80: 2.016 | G80: 1.7748 | H80: 0.8803571429
A81: 12 | B81: 0.185 | C81: 197.2 | D81: 0.01 | F81: 2.22 | G81: 1.972 | H81: 0.8882882883
A82: 12 | B82: 0.203 | C82: 197.2 | D82: 0.011 | F82: 2.436 | G82: 2.1692 | H82: 0.8904761905
A83: 12 | B83: 0.221 | C83: 197.2 | D83: 0.012 | F83: 2.652 | G83: 2.3664 | H83: 0.8923076923
A84: 12 | B84: 0.238 | C84: 197.2 | D84: 0.013 | F84: 2.856 | G84: 2.5636 | H84: 0.8976190476
A85: 12 | B85: 0.256 | C85: 197.2 | D85: 0.014 | F85: 3.072 | G85: 2.7608 | H85: 0.8986979167
A86: 12 | B86: 0.274 | C86: 197.3 | D86: 0.015 | F86: 3.288 | G86: 2.9595 | H86: 0.9000912409
A87: 12 | B87: 0.292 | C87: 197.3 | D87: 0.016 | F87: 3.504 | G87: 3.1568 | H87: 0.900913242
A88: 12 | B88: 0.31 | C88: 197.3 | D88: 0.017 | F88: 3.72 | G88: 3.3541 | H88: 0.9016397849
A89: 12 | B89: 0.328 | C89: 197.3 | D89: 0.018 | F89: 3.936 | G89: 3.5514 | H89: 0.9022865854
A90: 12 | B90: 0.346 | C90: 197.3 | D90: 0.019 | F90: 4.152 | G90: 3.7487 | H90: 0.9028660886
A91: 12 | B91: 0.357 | C91: 192.9 | D91: 0.02 | F91: 4.284 | G91: 3.858 | H91: 0.9005602241
A92: 12 | B92: 0.357 | C92: 184 | D92: 0.021 | F92: 4.284 | G92: 3.864 | H92: 0.9019607843
A93: 12 | B93: 0.356 | C93: 175.8 | D93: 0.022 | F93: 4.272 | G93: 3.8676 | H93: 0.9053370787
A94: 12 | B94: 0.356 | C94: 168.5 | D94: 0.023 | F94: 4.272 | G94: 3.8755 | H94: 0.9071863296
A95: 12 | B95: 0.356 | C95: 161.7 | D95: 0.024 | F95: 4.272 | G95: 3.8808 | H95: 0.9084269663
A96: 12 | B96: 0.356 | C96: 156.4 | D96: 0.025 | F96: 4.272 | G96: 3.91 | H96: 0.9152621723

Sheet Rev. B
A1: Input Voltage | B1: Input Current | C1: Output Voltage | D1: Output Current | F1: Input Power | G1: Output Power | H1: % Efficiency
A2: 3 | B2: 0.099 | C2: 196.5 | D2: 0.001 | F2: =A2*B2 -> 0.297 | G2: =C2*D2 -> 0.1965 | H2: =G2/F2 -> 0.6616161616
A3: 3 | B3: 0.175 | C3: 196.5 | D3: 0.002 | F3: =A3*B3 -> 0.525 | G3: =C3*D3 -> 0.393 | H3: =G3/F3 -> 0.7485714286
A4: 3 | B4: 0.251 | C4: 196.5 | D4: 0.003 | F4: =A4*B4 -> 0.753 | G4: =C4*D4 -> 0.5895 | H4: =G4/F4 -> 0.7828685259
A5: 3 | B5: 0.332 | C5: 196.5 | D5: 0.004 | F5: 0.996 | G5: 0.786 | H5: 0.7891566265
A6: 3 | B6: 0.412 | C6: 196.5 | D6: 0.005 | F6: 1.236 | G6: 0.9825 | H6: 0.7949029126
A7: 3 | B7: 0.496 | C7: 196.6 | D7: 0.006 | F7: 1.488 | G7: 1.1796 | H7: 0.7927419355
A8: 3 | B8: 0.586 | C8: 196.6 | D8: 0.007 | F8: 1.758 | G8: 1.3762 | H8: 0.7828213879
A9: 3 | B9: 0.678 | C9: 196.7 | D9: 0.008 | F9: 2.034 | G9: 1.5736 | H9: 0.7736479843
A10: 3 | B10: 0.774 | C10: 196.7 | D10: 0.009 | F10: 2.322 | G10: 1.7703 | H10: 0.7624031008
A11: 3 | B11: 0.861 | C11: 196.7 | D11: 0.01 | F11: 2.583 | G11: 1.967 | H11: 0.7615176152
A12: 3 | B12: 0.967 | C12: 196.8 | D12: 0.011 | F12: 2.901 | G12: 2.1648 | H12: 0.7462254395
A13: 3 | B13: 1.068 | C13: 196.8 | D13: 0.012 | F13: 3.204 | G13: 2.3616 | H13: 0.7370786517
A14: 3 | B14: 1.169 | C14: 196.9 | D14: 0.013 | F14: 3.507 | G14: 2.5597 | H14: 0.729883091
A15: 3 | B15: 1.274 | C15: 196.9 | D15: 0.014 | F15: 3.822 | G15: 2.7566 | H15: 0.7212454212
A16: 3 | B16: 1.386 | C16: 196.9 | D16: 0.015 | F16: 4.158 | G16: 2.9535 | H16: 0.7103174603
A17: 3 | B17: 1.505 | C17: 197 | D17: 0.016 | F17: 4.515 | G17: 3.152 | H17: 0.6981173865
A18: 3 | B18: 1.643 | C18: 197 | D18: 0.017 | F18: 4.929 | G18: 3.349 | H18: 0.6794481639
A19: 3 | B19: 1.821 | C19: 197.1 | D19: 0.018 | F19: =A19*B19 -> 5.463 | G19: =C19*D19 -> 3.5478 | H19: =G19/F19 -> 0.6494233937 | J19: Started smoking
A21: 5 | B21: 0.059 | C21: 196.7 | D21: 0.001 | F21: =A21*B21 -> 0.295 | G21: =C21*D21 -> 0.1967 | H21: =G21/F21 -> 0.666779661
A22: 5 | B22: 0.101 | C22: 196.7 | D22: 0.002 | F22: 0.505 | G22: 0.3934 | H22: 0.779009901
A23: 5 | B23: 0.143 | C23: 196.7 | D23: 0.003 | F23: 0.715 | G23: 0.5901 | H23: 0.8253146853
A24: 5 | B24: 0.185 | C24: 196.8 | D24: 0.004 | F24: 0.925 | G24: 0.7872 | H24: 0.851027027
A25: 5 | B25: 0.229 | C25: 196.8 | D25: 0.005 | F25: 1.145 | G25: 0.984 | H25: 0.8593886463
A26: 5 | B26: 0.272 | C26: 196.8 | D26: 0.006 | F26: 1.36 | G26: 1.1808 | H26: 0.8682352941
A27: 5 | B27: 0.314 | C27: 196.8 | D27: 0.007 | F27: 1.57 | G27: 1.3776 | H27: 0.8774522293
A28: 5 | B28: 0.356 | C28: 196.8 | D28: 0.008 | F28: 1.78 | G28: 1.5744 | H28: 0.884494382
A29: 5 | B29: 0.4 | C29: 196.8 | D29: 0.009 | F29: 2 | G29: 1.7712 | H29: 0.8856
A30: 5 | B30: 0.442 | C30: 196.8 | D30: 0.01 | F30: 2.21 | G30: 1.968 | H30: 0.8904977376
A31: 5 | B31: 0.485 | C31: 196.9 | D31: 0.011 | F31: 2.425 | G31: 2.1659 | H31: 0.8931546392
A32: 5 | B32: 0.529 | C32: 196.9 | D32: 0.012 | F32: 2.645 | G32: 2.3628 | H32: 0.8933081285
A33: 5 | B33: 0.574 | C33: 196.9 | D33: 0.013 | F33: 2.87 | G33: 2.5597 | H33: 0.8918815331
A34: 5 | B34: 0.618 | C34: 196.9 | D34: 0.014 | F34: 3.09 | G34: 2.7566 | H34: 0.8921035599
A35: 5 | B35: 0.662 | C35: 196.9 | D35: 0.015 | F35: 3.31 | G35: 2.9535 | H35: 0.8922960725
A36: 5 | B36: 0.706 | C36: 196.9 | D36: 0.016 | F36: 3.53 | G36: 3.1504 | H36: 0.8924645892
A37: 5 | B37: 0.751 | C37: 196.9 | D37: 0.017 | F37: 3.755 | G37: 3.3473 | H37: 0.891424767
A38: 5 | B38: 0.797 | C38: 196.9 | D38: 0.018 | F38: 3.985 | G38: 3.5442 | H38: 0.8893851945
A39: 5 | B39: 0.842 | C39: 196.9 | D39: 0.019 | F39: 4.21 | G39: 3.7411 | H39: 0.8886223278
A40: 5 | B40: 0.888 | C40: 196.9 | D40: 0.02 | F40: 4.44 | G40: 3.938 | H40: 0.8869369369
A41: 5 | B41: 0.936 | C41: 196.9 | D41: 0.021 | F41: 4.68 | G41: 4.1349 | H41: 0.883525641
A42: 5 | B42: 0.946 | C42: 190.2 | D42: 0.022 | F42: 4.73 | G42: 4.1844 | H42: 0.8846511628
A43: 5 | B43: 0.947 | C43: 182.5 | D43: 0.023 | F43: 4.735 | G43: 4.1975 | H43: 0.8864836325
A44: 5 | B44: 0.948 | C44: 175.5 | D44: 0.024 | F44: 4.74 | G44: 4.212 | H44: 0.8886075949
A45: 5 | B45: 0.95 | C45: 169.1 | D45: 0.025 | F45: 4.75 | G45: 4.2275 | H45: 0.89
A47: 9 | B47: 0.035 | C47: 196.9 | D47: 0.001 | F47: =A47*B47 -> 0.315 | G47: =C47*D47 -> 0.1969 | H47: =G47/F47 -> 0.6250793651
A48: 9 | B48: 0.059 | C48: 196.9 | D48: 0.002 | F48: 0.531 | G48: 0.3938 | H48: 0.7416195857
A49: 9 | B49: 0.082 | C49: 196.9 | D49: 0.003 | F49: 0.738 | G49: 0.5907 | H49: 0.8004065041
A50: 9 | B50: 0.106 | C50: 196.9 | D50: 0.004 | F50: 0.954 | G50: 0.7876 | H50: 0.8255765199
A51: 9 | B51: 0.128 | C51: 196.9 | D51: 0.005 | F51: 1.152 | G51: 0.9845 | H51: 0.8546006944
A52: 9 | B52: 0.152 | C52: 196.9 | D52: 0.006 | F52: 1.368 | G52: 1.1814 | H52: 0.8635964912
A53: 9 | B53: 0.175 | C53: 196.9 | D53: 0.007 | F53: 1.575 | G53: 1.3783 | H53: 0.8751111111
A54: 9 | B54: 0.199 | C54: 196.9 | D54: 0.008 | F54: 1.791 | G54: 1.5752 | H54: 0.8795086544
A55: 9 | B55: 0.222 | C55: 196.9 | D55: 0.009 | F55: 1.998 | G55: 1.7721 | H55: 0.8869369369
A56: 9 | B56: 0.245 | C56: 196.9 | D56: 0.01 | F56: 2.205 | G56: 1.969 | H56: 0.8929705215
A57: 9 | B57: 0.268 | C57: 196.9 | D57: 0.011 | F57: 2.412 | G57: 2.1659 | H57: 0.8979684909
A58: 9 | B58: 0.292 | C58: 196.9 | D58: 0.012 | F58: 2.628 | G58: 2.3628 | H58: 0.899086758
A59: 9 | B59: 0.316 | C59: 196.9 | D59: 0.013 | F59: 2.844 | G59: 2.5597 | H59: 0.9000351617
A60: 9 | B60: 0.339 | C60: 197 | D60: 0.014 | F60: 3.051 | G60: 2.758 | H60: 0.9039659128
A61: 9 | B61: 0.363 | C61: 197 | D61: 0.015 | F61: 3.267 | G61: 2.955 | H61: 0.9044995409
A62: 9 | B62: 0.387 | C62: 197 | D62: 0.016 | F62: 3.483 | G62: 3.152 | H62: 0.9049669825
A63: 9 | B63: 0.411 | C63: 197 | D63: 0.017 | F63: 3.699 | G63: 3.349 | H63: 0.9053798324
A64: 9 | B64: 0.434 | C64: 197 | D64: 0.018 | F64: 3.906 | G64: 3.546 | H64: 0.9078341014
A65: 9 | B65: 0.458 | C65: 197 | D65: 0.019 | F65: 4.122 | G65: 3.743 | H65: 0.9080543426
A66: 9 | B66: 0.482 | C66: 197 | D66: 0.02 | F66: 4.338 | G66: 3.94 | H66: 0.908252651
A67: 9 | B67: 0.506 | C67: 197 | D67: 0.021 | F67: 4.554 | G67: 4.137 | H67: 0.9084321476
A68: 9 | B68: 0.528 | C68: 196 | D68: 0.022 | F68: 4.752 | G68: 4.312 | H68: 0.9074074074
A69: 9 | B69: 0.528 | C69: 187.8 | D69: 0.023 | F69: 4.752 | G69: 4.3194 | H69: 0.9089646465
A70: 9 | B70: 0.528 | C70: 180.2 | D70: 0.024 | F70: 4.752 | G70: 4.3248 | H70: 0.9101010101
A71: 9 | B71: 0.528 | C71: 173.2 | D71: 0.025 | F71: 4.752 | G71: 4.33 | H71: 0.9111952862
A73: 12 | B73: 0.027 | C73: 197 | D73: 0.001 | F73: =A73*B73 -> 0.324 | G73: =C73*D73 -> 0.197 | H73: =G73/F73 -> 0.6080246914
A74: 12 | B74: 0.046 | C74: 197 | D74: 0.002 | F74: 0.552 | G74: 0.394 | H74: 0.7137681159
A75: 12 | B75: 0.063 | C75: 197 | D75: 0.003 | F75: 0.756 | G75: 0.591 | H75: 0.7817460317
A76: 12 | B76: 0.081 | C76: 197 | D76: 0.004 | F76: 0.972 | G76: 0.788 | H76: 0.8106995885
A77: 12 | B77: 0.098 | C77: 197 | D77: 0.005 | F77: 1.176 | G77: 0.985 | H77: 0.837585034
A78: 12 | B78: 0.116 | C78: 197.1 | D78: 0.006 | F78: 1.392 | G78: 1.1826 | H78: 0.8495689655
A79: 12 | B79: 0.133 | C79: 197.1 | D79: 0.007 | F79: 1.596 | G79: 1.3797 | H79: 0.8644736842
A80: 12 | B80: 0.15 | C80: 197.1 | D80: 0.008 | F80: 1.8 | G80: 1.5768 | H80: 0.876
A81: 12 | B81: 0.168 | C81: 197.1 | D81: 0.009 | F81: 2.016 | G81: 1.7739 | H81: 0.8799107143
A82: 12 | B82: 0.185 | C82: 197.1 | D82: 0.01 | F82: 2.22 | G82: 1.971 | H82: 0.8878378378
A83: 12 | B83: 0.202 | C83: 197.1 | D83: 0.011 | F83: 2.424 | G83: 2.1681 | H83: 0.8944306931
A84: 12 | B84: 0.22 | C84: 197.1 | D84: 0.012 | F84: 2.64 | G84: 2.3652 | H84: 0.8959090909
A85: 12 | B85: 0.238 | C85: 197.1 | D85: 0.013 | F85: 2.856 | G85: 2.5623 | H85: 0.8971638655
A86: 12 | B86: 0.255 | C86: 197.1 | D86: 0.014 | F86: 3.06 | G86: 2.7594 | H86: 0.9017647059
A87: 12 | B87: 0.273 | C87: 197.1 | D87: 0.015 | F87: 3.276 | G87: 2.9565 | H87: 0.9024725275
A88: 12 | B88: 0.29 | C88: 197.1 | D88: 0.016 | F88: 3.48 | G88: 3.1536 | H88: 0.9062068966
A89: 12 | B89: 0.308 | C89: 197.1 | D89: 0.017 | F89: 3.696 | G89: 3.3507 | H89: 0.9065746753
A90: 12 | B90: 0.326 | C90: 197.1 | D90: 0.018 | F90: 3.912 | G90: 3.5478 | H90: 0.9069018405
A91: 12 | B91: 0.344 | C91: 197.1 | D91: 0.019 | F91: 4.128 | G91: 3.7449 | H91: 0.9071947674
A92: 12 | B92: 0.361 | C92: 197.1 | D92: 0.02 | F92: 4.332 | G92: 3.942 | H92: 0.9099722992
A93: 12 | B93: 0.379 | C93: 197.1 | D93: 0.021 | F93: 4.548 | G93: 4.1391 | H93: 0.9100923483
A94: 12 | B94: 0.398 | C94: 197.1 | D94: 0.022 | F94: 4.776 | G94: 4.3362 | H94: 0.9079145729
A95: 12 | B95: 0.41 | C95: 194.4 | D95: 0.023 | F95: 4.92 | G95: 4.4712 | H95: 0.9087804878
A96: 12 | B96: 0.417 | C96: 189.8 | D96: 0.024 | F96: 5.004 | G96: 4.5552 | H96: 0.9103117506
A97: 12 | B97: 0.418 | C97: 183.2 | D97: 0.025 | F97: 5.016 | G97: 4.58 | H97: 0.9130781499

Sheet Charts
